bitfinex/quotes_BTCUSD_20251219
["timestamp","ask_amount","ask_price","bid_price","bid_amount"]
[1766133253690,0.01135447,88071.0,88064.0,0.11859]
[1766133253888,0.0113546,88070.0,88060.0,0.00010928]
[1766133254234,0.01707421,88073.0,88061.0,0.14587373]
[1766133254387,0.01135447,88071.0,88061.0,0.14587373]
[1766133254586,0.00572,88070.0,88061.0,0.14587373]
[1766133254801,0.00572,88070.0,88061.0,0.11859]
[1766133255017,0.23281724,88070.0,88061.0,0.11859]
[1766133255223,0.00572,88070.0,88061.0,0.11859]
[1766133255420,0.22708511,88073.0,88071.0,0.01706999]
[1766133255722,0.11264,88081.0,88060.0,0.00010928]
[1766133255723,0.0282525,88089.0,88072.0,0.00572]
[1766133255943,1.33295887,88082.0,88060.0,0.00010928]
[1766133256146,0.01135344,88079.0,88060.0,0.00010928]
[1766133256352,0.01135395,88075.0,88060.0,0.00010928]
[1766133256523,0.01135408,88074.0,88060.0,0.00010928]
[1766133256905,0.01707357,88078.0,88060.0,0.00010928]
[1766133257060,0.01135421,88073.0,88060.0,0.00010928]
[1766133257296,0.22710316,88066.0,88064.0,0.00636465]
[1766133257445,0.22710392,88066.0,88043.0,0.0056293]
[1766133257641,0.36416948,88060.0,88043.0,0.0055293]
[1766133258050,0.00572,88065.0,88043.0,0.0055293]
[1766133258485,0.00572,88065.0,88043.0,0.01688738]
[1766133258651,0.90735313,88070.0,88044.0,0.10205795]
[1766133258652,0.00572,88064.0,88044.0,0.10205795]
[1766133258829,0.04548,88072.0,88046.0,0.01135769]
[1766133259041,0.33414206,88070.0,88046.0,0.10205769]
[1766133259240,0.33414206,88070.0,88044.0,0.10216711]
[1766133259241,0.01707473,88069.0,88044.0,0.09080916]
[1766133259489,0.00572,88068.0,88044.0,0.09080916]
[1766133259730,0.00572,88067.0,88044.0,0.09080916]
[1766133259892,0.84145671,88070.0,88044.0,0.09080916]
[1766133260099,0.05683383,88076.0,88044.0,0.09080916]
[1766133260342,0.00572,88075.0,88044.0,0.00010916]
[1766133260491,0.00572,88075.0,88045.0,0.01135782]
[1766133260692,1e-08,88078.0,88046.0,0.01135769]
[1766133260890,0.25623173,88080.0,88046.0,0.01135769]
[1766133260891,1e-08,88077.0,88046.0,0.01135769]
[1766133261185,0.25623173,88080.0,88048.0,0.01135744]
[1766133261186,1e-08,88076.0,88048.0,0.01135744]
[1766133261525,0.00572,88081.0,88049.0,0.01934877]
[1766133261721,0.90735313,88080.0,88049.0,0.00572]
[1766133261928,0.14031731,88091.0,88050.0,0.01135718]
[1766133262099,0.02728373,88083.0,88049.0,0.00572]
[1766133262396,0.01707305,88082.0,88049.0,0.00572]
[1766133263174,0.73567585,88070.0,88049.0,0.00572]
[1766133263372,0.73567585,88070.0,88049.0,0.06351533]
[1766133263586,0.73567585,88070.0,88050.0,0.00572]
[1766133263797,0.0170737,88077.0,88050.0,0.00572]
[1766133264066,1e-08,88077.0,88050.0,0.00572]
[1766133264481,0.01135345,88079.0,88050.0,0.00572]
[1766133264482,0.00572,88078.0,88050.0,0.00572]
[1766133264928,1e-08,88079.0,88050.0,0.01707718]
[1766133265117,0.02728373,88078.0,88051.0,0.0907]
[1766133265262,0.02728373,88078.0,88052.0,0.01135692]
[1766133265759,0.02728373,88078.0,88053.0,0.01135679]
[1766133266101,0.02728373,88078.0,88061.0,0.0907]
[1766133266259,0.02728373,88078.0,88062.0,0.00572]
[1766133266460,0.00572,88087.0,88062.0,0.00572]
[1766133266672,0.03056771,88113.0,88087.0,0.001099]
[1766133266875,0.03863253,88115.0,88088.0,0.00572]
[1766133266876,0.03300373,88115.0,88088.0,0.00572]
[1766133267100,0.03300373,88115.0,88084.0,0.04548]
[1766133267101,0.03300373,88115.0,88089.0,0.00572]
[1766133267758,0.00076449,88108.0,88089.0,0.00572]
[1766133267974,0.22194304,88125.0,88089.0,0.00572]
[1766133268170,0.00010928,88125.0,88090.0,0.02728373]
[1766133268373,0.01134687,88130.0,88101.0,0.0907]
[1766133268593,0.01706661,88132.0,88101.0,0.0907]
[1766133268594,0.01706661,88132.0,88102.0,0.0512]
[1766133268844,0.01134674,88131.0,88102.0,0.0512]
[1766133269041,0.00572,88132.0,88102.0,0.0512]
[1766133269246,0.01134674,88131.0,88102.0,0.0512]
[1766133269447,0.01134687,88130.0,88102.0,0.0512]
[1766133269692,0.01134674,88131.0,88102.0,0.0512]
[1766133269898,0.01706661,88132.0,88102.0,0.0512]
[1766133270098,0.00572,88132.0,88102.0,0.0512]
[1766133270665,0.01706661,88132.0,88102.0,0.0512]
[1766133271043,0.01134674,88131.0,88102.0,0.0512]
[1766133271267,0.00572,88132.0,88102.0,0.0512]
[1766133272269,0.00572,88132.0,88103.0,0.0907]
[1766133272476,0.02728373,88136.0,88111.0,0.0907]
[1766133272675,0.0004,88141.0,88112.0,0.00572]
[1766133272676,0.02728373,88139.0,88112.0,0.00572]
[1766133273735,0.0004,88141.0,88130.0,0.0907]
[1766133273873,0.0004,88141.0,88139.0,0.001099]
[1766133274050,0.01134275,88162.0,88140.0,0.00572]
[1766133274273,0.02728373,88152.0,88141.0,0.00572]
[1766133274469,0.01134339,88157.0,88142.0,0.00572]
[1766133274784,0.01134378,88154.0,88143.0,0.00572]
[1766133274989,0.01134378,88154.0,88135.0,0.04548]
[1766133274990,0.01134365,88155.0,88144.0,0.00216]
[1766133275315,0.01134352,88156.0,88145.0,0.00136]
[1766133275526,0.01134365,88155.0,88145.0,0.00072]
[1766133275717,0.00173347,88146.0,88144.0,0.00572]
[1766133275921,0.22697838,88157.0,88131.0,0.0807]
[1766133276063,0.02728373,88150.0,88132.0,0.04616]
[1766133276497,0.01134442,88149.0,88132.0,0.04616]
[1766133276940,0.03862802,88150.0,88132.0,0.04616]
[1766133277160,0.01134442,88149.0,88133.0,0.00572]
[1766133277375,0.02728373,88150.0,88133.0,0.00572]
[1766133281043,0.02728373,88150.0,88131.0,0.0807]
[1766133281044,0.22689685,88146.0,88111.0,0.11798373]
[1766133281343,0.00170253,88145.0,88131.0,0.0907]
[1766133281538,0.11436,88148.0,88131.0,0.0907]
[1766133281853,0.11436,88148.0,88132.0,0.00566]
[1766133282278,0.12570455,88148.0,88132.0,0.00566]
[1766133282808,0.02728373,88150.0,88132.0,0.00566]
[1766133282984,0.00572,88153.0,88139.0,0.0907]
[1766133283188,0.0001092,88157.0,88140.0,0.003819]
[1766133283445,0.0001092,88157.0,88147.0,0.90735313]
[1766133283558,0.0001092,88157.0,88141.0,0.0907]
[1766133284179,0.0001092,88157.0,88145.0,0.02728373]
[1766133284406,0.03055456,88193.0,88145.0,0.02728373]
[1766133284407,0.01133966,88186.0,88148.0,0.0907]
[1766133284619,0.03862378,88183.0,88170.0,0.90735313]
[1766133285029,0.02728373,88183.0,88170.0,0.90735313]
[1766133285266,0.12569709,88206.0,88176.0,0.02728373]
[1766133285467,0.11744,88207.0,88190.0,0.90235313]
[1766133285696,0.11744,88207.0,88191.0,0.00572]
[1766133285898,0.11744,88207.0,88174.0,0.0907]
[1766133285899,0.11436,88203.0,88170.0,0.90735313]
[1766133286105,0.11436,88199.0,88171.0,0.14186]
[1766133286535,0.00036413,88199.0,88180.0,0.90735313]
[1766133286742,0.00036413,88199.0,88181.0,0.00572]
[1766133286952,0.00036413,88199.0,88182.0,0.00572]
[1766133287178,0.00287764,88183.0,88148.0,0.01134455]
[1766133287381,0.11436,88188.0,88161.0,0.0907]
[1766133287382,0.11436,88186.0,88161.0,0.0907]
[1766133287622,0.01134031,88181.0,88161.0,0.0907]
[1766133287824,0.01134056,88179.0,88162.0,0.00572]
[1766133288040,0.11436,88179.0,88161.0,0.0907]
[1766133288251,0.11436,88179.0,88162.0,0.00572]
[1766133288450,0.00572,88180.0,88169.0,0.90735313]
[1766133288708,0.00572,88185.0,88162.0,0.00572]
[1766133288879,0.00572,88185.0,88161.0,0.0907]
[1766133288880,0.00572,88185.0,88163.0,0.00572]
[1766133290231,0.00572,88185.0,88170.0,0.90735313]
[1766133290407,0.00572,88185.0,88171.0,0.00572]
[1766133290619,0.02728373,88195.0,88171.0,0.00572]
[1766133290828,0.00036413,88199.0,88185.0,0.90845213]
[1766133290999,0.00036413,88199.0,88186.0,0.00572]
[1766133291592,0.00036413,88199.0,88190.0,0.02728373]
[1766133291967,1.3e-07,88199.0,88190.0,0.02728373]
[1766133292333,0.01133349,88234.0,88205.0,0.0907]
[1766133292571,0.11436,88232.0,88206.0,0.05116]
[1766133292778,0.11436,88231.0,88211.0,0.0907]
[1766133293180,0.11436,88230.0,88211.0,0.0907]
[1766133293405,0.11436,88230.0,88212.0,0.00572]
[1766133293980,0.11744,88231.0,88212.0,0.00572]
[1766133294383,0.000364,88212.0,88201.0,0.0907]
[1766133294550,0.11436,88224.0,88206.0,0.04544]
[1766133294745,0.11436,88219.0,88201.0,0.0907]
[1766133294944,0.11744,88221.0,88200.0,1.0]
[1766133294945,0.12877645,88211.0,88200.0,1.0]
[1766133295263,0.2318,88211.0,88200.0,0.995256]
[1766133295443,0.11436,88203.0,88200.0,0.22928681]
[1766133295642,0.02728373,88205.0,88161.0,0.0577144]
[1766133295643,0.11744,88200.0,88190.0,0.00572]
[1766133295856,0.11436,88199.0,88190.0,0.00572]
[1766133296169,0.01133786,88200.0,88170.0,0.90735313]
[1766133296374,0.22675835,88200.0,88171.0,0.05116]
[1766133296573,0.11744,88199.0,88172.0,0.05116]
[1766133296779,0.12877799,88199.0,88172.0,0.05116]
[1766133296986,0.01133812,88198.0,88170.0,0.90735313]
[1766133297199,0.11744,88193.0,88171.0,0.05112]
[1766133297599,0.11744,88193.0,88172.0,0.00572]
[1766133298318,0.11744,88192.0,88172.0,0.00572]
[1766133298537,0.11436,88191.0,88172.0,0.00572]
[1766133298825,0.11436,88189.0,88172.0,0.00572]
[1766133299028,0.2318,88188.0,88172.0,0.00572]
[1766133299227,0.2318,88188.0,88179.0,0.88735313]
[1766133299426,0.11436,88198.0,88188.0,0.001099]
[1766133299790,0.11436,88198.0,88186.0,0.00572]
[1766133300133,0.11436,88206.0,88187.0,0.90735313]
[1766133300482,0.11436,88201.0,88188.0,0.00572]
[1766133300753,0.11744,88221.0,88190.0,0.90735313]
[1766133300892,0.01133491,88223.0,88200.0,0.0907]
[1766133300893,0.01133529,88220.0,88200.0,0.0907]
[1766133301095,0.02728373,88223.0,88200.0,0.0907]
[1766133301096,0.01133619,88213.0,88200.0,0.99805313]
[1766133301295,0.12877581,88216.0,88192.0,0.0454]
[1766133301571,0.11744,88208.0,88165.0,0.01134236]
[1766133301776,0.11744,88208.0,88164.0,0.27686803]
[1766133301777,0.11780384,88208.0,88180.0,0.90735313]
[1766133301944,0.11780384,88208.0,88190.0,0.90735313]
[1766133302153,0.12914068,88208.0,88191.0,0.00572]
[1766133302485,0.12877709,88206.0,88191.0,0.00072]
[1766133302698,0.11744,88199.0,88189.0,0.00572]
[1766133302870,0.11436,88194.0,88182.0,0.00572]
[1766133303229,0.11436,88194.0,88181.0,0.00572]
[1766133304003,0.11436,88194.0,88182.0,0.00572]
[1766133304175,0.01133876,88193.0,88171.0,0.0907]
[1766133304573,0.00253758,88172.0,88166.0,0.0454]
[1766133304792,0.11665,88189.0,88167.0,0.00572]
[1766133304998,0.11665,88189.0,88170.0,0.90735313]
[1766133305764,0.11665,88189.0,88170.0,0.90746226]
[1766133306188,0.1227,88188.0,88170.0,0.90746226]
[1766133306337,0.24466,88188.0,88170.0,0.90746226]
[1766133307523,0.1227,88188.0,88170.0,0.90746226]
[1766133308749,0.00572,88192.0,88178.0,0.90735313]
[1766133308928,0.00572,88192.0,88179.0,0.00572]
[1766133309887,0.00572,88208.0,88179.0,0.13731241]
[1766133310121,0.03300373,88208.0,88190.0,0.90735313]
[1766133310355,0.03300373,88208.0,88191.0,0.00572]
[1766133310697,0.00572,88208.0,88191.0,0.00572]
[1766133311100,0.1227,88211.0,88191.0,0.00572]
[1766133311101,0.1227,88211.0,88198.0,0.90735313]
[1766133311299,0.12196,88216.0,88199.0,0.00572]
[1766133311902,0.12196,88216.0,88200.0,0.90735313]
[1766133312106,0.1227,88221.0,88200.0,0.90735313]
[1766133312323,0.1227,88221.0,88210.0,0.90735313]
[1766133312324,0.00036384,88221.0,88210.0,0.90735313]
[1766133312522,3.84e-06,88221.0,88211.0,0.00572]
[1766133314667,3.84e-06,88221.0,88211.0,0.09642]
[1766133315210,0.02728373,88238.0,88211.0,0.09642]
[1766133315366,2.21e-06,88244.0,88211.0,0.09642]
[1766133315572,2.21e-06,88244.0,88211.0,0.09678384]
[1766133316365,0.12469998,88260.0,88230.0,0.90735313]
[1766133316366,0.02728373,88252.0,88230.0,0.90735313]
[1766133316608,0.04080192,88267.0,88215.0,0.02728373]
[1766133316609,0.22659038,88265.0,88237.0,0.90735313]
[1766133316852,0.01132977,88263.0,88238.0,0.09642]
[1766133317068,0.01132977,88263.0,88239.0,0.00072]
[1766133317069,3.74e-06,88252.0,88239.0,0.00072]
[1766133317290,3.74e-06,88252.0,88231.0,0.0907]
[1766133317291,0.02729469,88262.0,88240.0,0.0006]
[1766133317518,0.08963588,88263.0,88240.0,2e-05]
[1766133317782,0.00572,88261.0,88240.0,2e-05]
[1766133317996,0.00572,88261.0,88240.0,1.32479401]
[1766133318667,0.16500816,88280.0,88251.0,0.0907]
[1766133318963,0.02728373,88269.0,88252.0,0.00572]
[1766133319424,0.0273928,88271.0,88252.0,0.00572]
[1766133319556,0.02728373,88267.0,88252.0,0.00572]
[1766133319752,0.02728373,88270.0,88252.0,0.00572]
[1766133320096,0.00463688,88272.0,88252.0,0.00572]
[1766133320097,0.00463688,88272.0,88252.0,0.00582907]
[1766133321258,0.00572,88272.0,88252.0,0.00582907]
[1766133321766,2e-08,88253.0,88252.0,0.00582907]
[1766133321951,0.02728373,88278.0,88252.0,0.00582907]
[1766133322846,0.01132785,88278.0,88261.0,0.0907]
[1766133323056,0.01132785,88278.0,88260.0,0.00572]
[1766133323057,0.02728373,88277.0,88260.0,0.00572]
[1766133323307,0.00027759,88262.0,88258.0,0.00572]
[1766133323463,0.00572,88273.0,88256.0,0.00494]
[1766133323671,0.00572,88273.0,88252.0,0.00010907]
[1766133323672,0.00572,88273.0,88254.0,0.00572]
[1766133324465,0.2267315,88288.0,88260.0,1.32477401]
[1766133324466,0.00572,88278.0,88260.0,1.32477401]
[1766133324657,0.00572,88282.0,88261.0,0.00572]
[1766133326806,0.0002,88288.0,88271.0,0.0907]
[1766133326982,0.0002,88288.0,88272.0,0.00572]
[1766133327703,0.0002,88288.0,88273.0,0.00572]
[1766133328282,0.0002,88288.0,88261.0,0.0907]
[1766133328283,0.0002,88288.0,88274.0,0.00572]
[1766133329066,0.0002,88288.0,88260.0,1.32477401]
[1766133329067,0.23786076,88287.0,88252.0,0.00010907]
[1766133329299,0.1227,88298.0,88252.0,0.00010907]
[1766133329300,0.0002,88297.0,88287.0,0.001099]
[1766133329551,0.0002,88297.0,88288.0,0.09642]
[1766133329770,0.0002,88297.0,88288.0,0.0907]
[1766133329965,0.0002,88297.0,88288.0,0.06062]
[1766133330163,0.02728373,88296.0,88278.0,0.00572]
[1766133330574,0.00080251,88279.0,88278.0,0.00572]
[1766133330794,5.1e-07,88279.0,88278.0,0.00572]
[1766133330983,0.02728373,88296.0,88260.0,1.32477401]
[1766133331223,0.02728373,88282.0,88260.0,0.00010907]
[1766133331353,0.02728373,88282.0,88261.0,0.00572]
[1766133332099,0.02728373,88281.0,88262.0,0.00572]
[1766133332743,0.03861119,88281.0,88262.0,0.00572]
[1766133332988,0.02728373,88281.0,88262.0,0.00572]
[1766133333702,0.02728373,88281.0,88263.0,0.00572]
[1766133333897,0.00572,88283.0,88263.0,0.00572]
[1766133334329,0.00572,88283.0,88264.0,0.00572]
[1766133334617,0.02728373,88282.0,88264.0,0.00572]
[1766133335171,0.02728373,88282.0,88265.0,0.00572]
[1766133337272,0.00572,88285.0,88265.0,0.00572]
[1766133337444,0.02728373,88282.0,88265.0,0.00572]
[1766133338839,0.02728373,88282.0,88260.0,0.00010907]
[1766133339021,0.02728373,88282.0,88261.0,0.00572]
[1766133339022,0.000802,88265.0,88261.0,0.00572]
[1766133339220,0.02722189,88282.0,88260.0,0.00582907]
[1766133339788,0.01704695,88285.0,88260.0,0.00582907]
[1766133339789,0.00572,88285.0,88260.0,0.00582907]
[1766133340063,3.73e-06,88280.0,88260.0,0.00582907]
[1766133340361,0.00419071,88285.0,88260.0,0.00582907]
[1766133341112,0.01132682,88284.0,88260.0,0.00582907]
[1766133342150,0.02728373,88279.0,88260.0,0.00582907]
[1766133342957,0.02728373,88279.0,88260.0,0.00010907]
[1766133343158,0.02728373,88279.0,88260.0,0.00582907]
[1766133343531,0.34693946,88278.0,88241.0,0.0907]
[1766133343728,0.12038,88271.0,88242.0,0.05108]
[1766133343926,0.12038,88271.0,88241.0,0.09050907]
[1766133344133,0.01132682,88270.0,88242.0,0.05108]
[1766133344350,0.12038,88264.0,88232.0,0.03017795]
[1766133344587,0.12038,88264.0,88230.0,0.03017795]
[1766133344787,0.12038,88264.0,88233.0,0.05108]
[1766133345136,0.1261,88264.0,88234.0,0.05108]
[1766133345341,0.0113308,88255.0,88228.0,0.03017795]
[1766133345557,0.12038,88245.0,88224.0,0.00572]
[1766133345775,0.12038,88245.0,88223.0,0.00572]
[1766133346362,0.00572,88247.0,88223.0,0.00572]
[1766133346561,0.00572,88247.0,88230.0,1.32477401]
[1766133346988,0.00572,88247.0,88231.0,0.0907]
[1766133347389,0.23755,88246.0,88231.0,0.0707]
[1766133347591,0.03172589,88241.0,88223.0,0.00072]
[1766133347753,0.00572,88247.0,88230.0,1.32477401]
[1766133347754,0.01132682,88246.0,88230.0,1.32477401]
[1766133350280,0.01132682,88246.0,88223.0,0.00082911]
[1766133350564,0.03172589,88245.0,88223.0,0.00082911]
[1766133350786,0.03172589,88245.0,88223.0,0.00010911]
[1766133351065,0.11717,88243.0,88223.0,0.00010911]
[1766133351267,0.12038,88241.0,88223.0,1.1e-07]
[1766133351425,0.04305797,88245.0,88223.0,1.1e-07]
[1766133351426,0.11717,88238.0,88223.0,1.1e-07]
[1766133351797,0.00572,88238.0,88223.0,1.1e-07]
[1766133351986,0.05001839,88244.0,88223.0,1.1e-07]
[1766133352186,0.05001839,88244.0,88218.0,0.00144011]
[1766133352187,0.05001839,88242.0,88218.0,0.00144011]
[1766133352390,0.05012736,88242.0,88218.0,0.00144011]
[1766133352821,0.01133272,88240.0,88218.0,0.00144011]
[1766133352976,0.01133272,88240.0,88211.0,0.0907]
[1766133352977,0.00099,88218.0,88193.0,0.03017795]
[1766133353309,0.22667512,88232.0,88190.0,1.32477401]
[1766133353310,0.00572,88232.0,88209.0,0.0362672]
[1766133353479,0.00572,88232.0,88210.0,0.00572]
[1766133354659,0.12038,88235.0,88210.0,0.00572]
[1766133354867,0.23755,88233.0,88210.0,0.00572]
[1766133355180,0.0362672,88225.0,88190.0,1.32477401]
[1766133355391,0.0362672,88225.0,88191.0,0.0907]
[1766133355605,0.12038,88223.0,88193.0,0.0362672]
[1766133355831,0.23755,88220.0,88193.0,0.0362672]
[1766133356783,0.23755,88220.0,88194.0,0.00572]
[1766133356784,0.11717,88216.0,88194.0,0.00572]
[1766133356981,0.12038,88211.0,88181.0,0.0907]
[1766133357239,0.12038,88211.0,88182.0,0.05112]
[1766133357568,0.0362672,88225.0,88182.0,0.05112]
[1766133357569,0.11717,88224.0,88195.0,0.0362672]
[1766133357738,0.11717,88224.0,88211.0,0.001099]
[1766133357940,0.12038,88228.0,88211.0,0.001099]
[1766133358141,0.12048895,88228.0,88209.0,0.00572]
[1766133358360,0.12038,88227.0,88209.0,0.00572]
[1766133358487,0.12038,88227.0,88187.0,0.01133953]
[1766133358488,0.11717,88222.0,88207.0,0.00572]
[1766133358682,0.00010895,88228.0,88209.0,0.0362672]
[1766133359530,0.00010895,88228.0,88206.0,0.00572]
[1766133360267,0.12048895,88228.0,88206.0,0.00572]
[1766133360473,0.12038,88227.0,88206.0,0.00572]
[1766133361443,0.11727895,88228.0,88209.0,0.0362672]
[1766133361634,0.11727895,88228.0,88210.0,1.32477401]
[1766133363714,0.23765895,88228.0,88209.0,0.0333662]
[1766133364268,0.11727895,88228.0,88209.0,0.0333662]
[1766133364485,0.12319,88227.0,88209.0,0.0333662]
[1766133366000,0.12495,88226.0,88206.0,0.00572]
[1766133366234,0.1126,88226.0,88206.0,0.00572]
[1766133366423,0.12495,88225.0,88206.0,0.00572]
[1766133367498,0.12495,88224.0,88206.0,0.00572]
[1766133368753,0.1126,88224.0,88206.0,0.00572]
[1766133368940,0.12495,88219.0,88207.0,0.00572]
[1766133369138,0.12495,88216.0,88191.0,0.0907]
[1766133369368,0.12495,88216.0,88198.0,0.0361672]
[1766133369712,0.12495,88216.0,88200.0,1.32477401]
[1766133369916,0.1126,88217.0,88201.0,0.00572]
[1766133370575,0.23755,88217.0,88201.0,0.00572]
[1766133370977,0.00572,88223.0,88201.0,0.00572]
[1766133371304,0.00572,88223.0,88201.0,0.09642]
[1766133371305,0.12495,88218.0,88201.0,0.09642]
[1766133371440,0.1126,88213.0,88201.0,0.09642]
[1766133371638,0.00572,88217.0,88191.0,0.0907]
[1766133371881,0.12495,88218.0,88207.0,1.32477401]
[1766133372130,0.00010895,88228.0,88209.0,0.0362672]
[1766133372288,0.1126,88239.0,88209.0,0.0362672]
[1766133372289,0.1126,88239.0,88223.0,1.36104121]
[1766133372433,0.1126,88239.0,88228.0,0.000108]
[1766133372887,0.1126,88239.0,88224.0,0.00572]
[1766133373184,0.12495,88238.0,88224.0,0.00572]
[1766133373622,0.23755,88236.0,88224.0,0.00572]
[1766133373867,0.1126,88235.0,88224.0,0.00572]
[1766133374002,0.12495,88234.0,88224.0,0.00572]
[1766133376526,0.12495,88234.0,88225.0,0.00572]
[1766133377544,0.12495,88233.0,88225.0,0.00572]
[1766133377780,0.12495,88233.0,88226.0,0.00572]
[1766133378963,0.00010907,88236.0,88226.0,0.00572]
[1766133379520,0.00010907,88236.0,88227.0,0.00572]
[1766133380977,0.12505907,88236.0,88220.0,0.90332567]
[1766133381176,0.12505907,88236.0,88221.0,0.00152]
[1766133381401,0.12495,88232.0,88222.0,0.00572]
[1766133381676,0.00010907,88236.0,88220.0,0.90332567]
[1766133381677,0.00010907,88236.0,88223.0,0.00572]
[1766133382059,0.00010907,88236.0,88226.0,0.90332567]
[1766133383487,0.00010907,88236.0,88228.0,0.0362672]
[1766133383654,0.00572,88246.0,88236.0,0.000109]
[1766133383857,0.12495,88257.0,88246.0,0.00099]
[1766133384056,0.23755,88263.0,88247.0,0.90332567]
[1766133384284,0.23765905,88263.0,88247.0,0.90904567]
[1766133384497,0.0362672,88261.0,88247.0,0.90904567]
[1766133384682,0.0362672,88262.0,88247.0,0.90904567]
[1766133385436,0.00572,88265.0,88247.0,0.90904567]
[1766133385583,0.0454,88276.0,88247.0,0.90915472]
[1766133385584,0.0362672,88264.0,88247.0,0.90915472]
[1766133385782,0.00572,88266.0,88247.0,0.90915472]
[1766133385992,0.00572,88267.0,88247.0,0.90915472]
[1766133386393,0.00572,88267.0,88248.0,0.0907]
[1766133387146,0.00572,88269.0,88248.0,0.0907]
[1766133388315,0.0454,88294.0,88260.0,0.0907]
[1766133388475,0.03300373,88296.0,88269.0,0.001099]
[1766133388671,0.03300373,88296.0,88271.0,0.0655]
[1766133388870,0.03300373,88296.0,88272.0,0.00072]
[1766133389096,0.03300373,88296.0,88271.0,0.0605]
[1766133389408,0.04432927,88296.0,88272.0,0.00072]
[1766133389616,0.04432927,88296.0,88271.0,0.04538]
[1766133389818,0.04432927,88296.0,88270.0,0.90332567]
[1766133389819,0.02688373,88296.0,88272.0,0.00572]
[1766133391019,0.02688373,88296.0,88280.0,0.90332567]
[1766133391206,0.02688373,88296.0,88281.0,0.00572]
[1766133392102,0.01132579,88294.0,88271.0,0.0857]
[1766133392306,0.01132618,88291.0,88272.0,0.00572]
[1766133392617,0.01132643,88289.0,88272.0,0.00572]
[1766133392820,0.01132631,88290.0,88272.0,0.00572]
[1766133393023,0.0362672,88282.0,88252.0,0.0454]
[1766133393205,0.00572,88281.0,88260.0,0.90332567]
[1766133393417,0.00572,88281.0,88261.0,0.00572]
[1766133393623,0.00572,88281.0,88270.0,0.90332567]
[1766133393860,0.00572,88281.0,88269.0,0.00572]
[1766133394463,0.00572,88287.0,88269.0,0.00572]
[1766133394681,0.00572,88287.0,88271.0,0.0907]
[1766133395508,0.00572,88291.0,88271.0,0.0907]
[1766133396749,0.00582903,88296.0,88271.0,0.0907]
[1766133397962,0.01715457,88296.0,88271.0,0.0907]
[1766133398166,0.01715457,88296.0,88269.0,0.00572]
[1766133398167,0.05774649,88314.0,88296.0,0.001099]
[1766133398364,0.01132348,88312.0,88288.0,0.00572]
[1766133398542,0.00030866,88297.0,88288.0,0.00572]
[1766133398746,0.01132348,88312.0,88288.0,0.00572]
[1766133398942,0.00024693,88295.0,88288.0,0.00572]
[1766133399765,0.00024693,88295.0,88271.0,0.0907]
[1766133399965,0.04759299,88294.0,88271.0,0.0857]
[1766133400165,0.22651852,88293.0,88271.0,0.00572]
[1766133400344,0.22651852,88293.0,88260.0,0.94868567]
[1766133400345,0.01132733,88282.0,88246.0,0.03029822]
[1766133400550,0.01132669,88287.0,88246.0,0.03029822]
[1766133400551,0.00572,88284.0,88254.0,0.04536]
[1766133400864,0.00572,88284.0,88260.0,0.90332567]
[1766133401455,0.00572,88284.0,88260.0,0.9034347]
[1766133401789,0.00572,88284.0,88260.0,0.00010903]
[1766133402357,0.0362672,88280.0,88258.0,0.00572]
[1766133402559,0.0362672,88280.0,88255.0,0.00572]
[1766133402787,0.1573972,88280.0,88255.0,0.00582905]
[1766133402981,0.12474,88279.0,88255.0,0.00582905]
[1766133403229,0.12113,88275.0,88255.0,0.00582905]
[1766133403358,0.12685,88274.0,88255.0,0.00582905]
[1766133403958,0.12113,88273.0,88255.0,0.00582905]
[1766133404187,0.0362672,88266.0,88241.0,0.08560905]
[1766133404390,0.13046,88265.0,88244.0,0.00572]
[1766133404612,0.25159,88265.0,88244.0,0.00572]
[1766133405706,0.25159,88265.0,88241.0,0.08560905]
[1766133405888,0.25159,88265.0,88243.0,0.00572]
[1766133406893,0.24587,88264.0,88243.0,0.00572]
[1766133407207,0.12113,88259.0,88239.0,0.00572]
[1766133407408,0.12113,88257.0,88239.0,0.00572]
[1766133407612,0.12113,88256.0,88239.0,0.00572]
[1766133408290,0.12113,88255.0,88239.0,0.00572]
[1766133408461,0.12113,88255.0,88231.0,0.0907]
[1766133408462,0.12113,88249.0,88231.0,0.00572]
[1766133408657,0.12113,88247.0,88231.0,0.00572]
[1766133408905,0.00572,88248.0,88208.0,0.03029822]
[1766133408906,0.1573972,88237.0,88208.0,0.03029822]
[1766133409106,0.12113,88227.0,88200.0,0.03029822]
[1766133409301,0.0362672,88223.0,88201.0,0.00572]
[1766133409474,0.0362672,88223.0,88201.0,0.09642]
[1766133409678,0.0362672,88223.0,88201.0,0.00572]
[1766133409921,0.0362672,88223.0,88201.0,0.09642]
[1766133410222,0.0362672,88223.0,88201.0,0.09678384]
[1766133410581,0.0362672,88223.0,88201.0,0.00608384]
[1766133410961,0.0362672,88223.0,88201.0,0.09678384]
[1766133411964,0.13246516,88221.0,88201.0,0.00036384]
[1766133412185,0.12474,88222.0,88201.0,0.00036384]
[1766133412397,0.12113,88221.0,88201.0,0.00036384]
[1766133413159,0.12113,88221.0,88201.0,0.09106384]
[1766133413654,0.00572,88220.0,88201.0,0.09106384]
[1766133414406,0.00572,88220.0,88201.0,0.00036384]
[1766133415405,0.00572,88220.0,88201.0,0.09106384]
[1766133415841,0.12685,88220.0,88201.0,0.09106384]
[1766133416049,0.12685,88220.0,88210.0,0.87832567]
[1766133416225,0.12685,88220.0,88201.0,0.08606384]
[1766133416431,0.12113,88219.0,88201.0,0.08606384]
[1766133416635,0.12113,88219.0,88200.0,0.90904567]
[1766133416636,0.00572,88220.0,88200.0,0.90332567]
[1766133416861,0.12113,88218.0,88200.0,0.90332567]
[1766133418246,0.00608303,88220.0,88193.0,0.00572]
[1766133418247,0.12474,88213.0,88193.0,0.00572]
[1766133418435,0.12113,88210.0,88193.0,0.00572]
[1766133418631,0.12113,88210.0,88190.0,0.94872567]
[1766133418632,0.12474,88207.0,88190.0,0.0454]
[1766133418854,0.0362672,88208.0,88190.0,0.0454]
[1766133418855,0.24587,88205.0,88190.0,0.04112]
[1766133419094,0.00572,88206.0,88190.0,0.90332567]
[1766133419095,0.24587,88204.0,88190.0,0.90332567]
[1766133419304,0.12474,88201.0,88187.0,0.00572]
[1766133419498,0.12113,88199.0,88179.0,0.00532]
[1766133419750,0.0362672,88191.0,88179.0,0.00532]